bitfinex-derivatives/quotes_ETHF0:USTF0_20251107
["timestamp","ask_amount","ask_price","bid_price","bid_amount"]
[1762516519004,3.2078,3256.6,3256.5,0.49772]
[1762516519210,0.49766,3256.9,3256.6,0.4977]
[1762516519410,9.869,3257.0,3256.4,0.3575]
[1762516519612,9.869,3257.0,3256.9,1.07246]
[1762516519816,0.49761,3257.2,3257.1,0.3575]
[1762516520401,3.70541,3257.2,3257.1,0.3575]
[1762516521718,3.70541,3257.2,3256.6,3.2078]
[1762516521719,0.49769,3256.7,3256.6,3.2078]
[1762516522014,3.70541,3257.2,3257.1,0.3575]
[1762516522402,0.00293909,3257.3,3257.2,1.07241]
[1762516522712,0.00460815,3257.5,3257.4,1.07238]
[1762516522919,3.2078,3258.2,3257.8,0.3575]
[1762516523206,0.49747,3258.1,3257.8,0.85502]
[1762516523515,3.2078,3258.2,3258.1,0.49747]
[1762516523707,3.2078,3258.2,3258.1,0.5748]
[1762516523906,3.70766078,3258.2,3258.1,0.5748]
[1762516524404,0.4975,3257.9,3257.8,0.36570097]
[1762516525506,0.4975,3257.9,3257.8,0.00820097]
[1762516526115,0.4975,3257.9,3257.8,0.36570097]
[1762516526308,0.4975,3257.9,3257.8,0.00820097]
[1762516526510,0.49761,3257.2,3257.1,0.3575]
[1762516527514,0.49761,3257.2,3257.1,0.36114803]
[1762516527809,0.49772,3256.5,3256.4,1.09948508]
[1762516528005,0.49773,3256.4,3256.3,1.09948508]
[1762516528204,0.49783,3255.8,3255.7,0.3575]
[1762516528509,3.70563,3255.8,3255.7,0.3575]
[1762516529013,3.7083744,3255.8,3255.7,0.36052357]
[1762516531512,3.2105444,3255.8,3255.7,0.36052357]
[1762516531716,3.7083744,3255.8,3255.7,0.36052357]
[1762516532106,3.2105444,3255.8,3255.7,0.36052357]
[1762516532418,0.5005744,3255.8,3255.7,0.36052357]
[1762516532819,3.7083744,3255.8,3255.7,0.36052357]
[1762516533019,0.00460815,3256.8,3256.1,0.5748]
[1762516533318,0.00460815,3256.8,3256.7,3.7826]
[1762516533512,0.50227815,3256.8,3256.7,3.2078]
[1762516534222,0.50486694,3256.8,3256.7,3.2078]
[1762516534910,0.00719694,3256.8,3256.4,0.3575]
[1762516535619,0.49775,3256.3,3256.2,3.2078]
[1762516535914,0.49773,3256.5,3256.2,3.2078]
[1762516536116,0.49774,3256.4,3256.2,3.2078]
[1762516536513,0.00719694,3256.8,3256.4,0.3575]
[1762516536713,0.00719694,3256.8,3256.6,3.2078]
[1762516537112,3.2078,3258.3,3256.7,8.0]
[1762516537309,3.75963164,3259.8,3256.7,8.0]
[1762516537310,1.08374466,3259.1,3258.5,0.3575]
[1762516537514,3.2078,3259.7,3259.2,0.3575]
[1762516537813,0.49727,3259.5,3259.3,1.09717834]
[1762516538009,3.9549,3259.6,3259.2,1.09717834]
[1762516538221,0.49729,3259.3,3259.2,0.00377157]
[1762516538420,1.11139,3259.3,3259.2,0.00377157]
[1762516538719,5.06629,3259.3,3259.2,0.00377157]
[1762516538923,0.00382746,3259.6,3259.2,0.38627157]
[1762516539114,4.57282746,3259.6,3259.2,0.38627157]
[1762516539314,5.07007746,3259.6,3259.2,0.38627157]
[1762516539614,4.45216,3259.5,3259.2,0.00377157]
[1762516540118,4.45218,3259.4,3259.2,0.00377157]
[1762516540314,0.6141,3259.3,3259.2,0.00377157]
[1762516540513,4.569,3259.3,3259.2,0.00377157]
[1762516541818,3.9549,3259.3,3259.2,0.00377157]
[1762516542012,0.00382746,3259.6,3259.2,0.41057157]
[1762516542319,0.00382746,3259.6,3259.5,0.6724]
[1762516542711,0.00382746,3259.6,3259.4,3.2078]
[1762516543308,0.00382746,3259.6,3259.5,0.6724]
[1762516544410,4.45597746,3259.6,3259.4,3.2078]
[1762516544612,4.569,3259.5,3259.2,0.00377157]
[1762516544917,0.6141,3259.4,3259.2,0.00377157]
[1762516545213,4.569,3259.4,3259.2,0.00377157]
[1762516545419,0.00382746,3259.6,3259.3,0.49729]
[1762516545721,4.57282746,3259.6,3259.4,3.2078]
[1762516545918,0.00382746,3259.6,3259.5,0.6724]
[1762516546116,0.00460815,3259.7,3259.6,1.16964]
[1762516546322,13.2448,3260.5,3260.0,0.49718]
[1762516546522,4.569,3260.4,3260.0,3.70498]
[1762516546725,13.9919,3260.5,3260.2,0.49714]
[1762516547019,4.569,3260.5,3260.0,3.2078]
[1762516547220,0.49716,3260.2,3260.0,3.2078]
[1762516547424,0.49998794,3260.2,3260.0,3.2078]
[1762516547827,4.569,3260.1,3259.5,3.2078]
[1762516548120,0.6141,3259.8,3259.5,3.2078]
[1762516548421,0.49723,3259.7,3259.5,3.2078]
[1762516548824,0.00282794,3260.2,3260.1,0.6724]
[1762516549023,0.49717,3260.1,3260.0,3.2078]
[1762516549224,4.45207,3260.1,3260.0,3.2078]
[1762516550520,3.9549,3260.1,3260.0,3.70498]
[1762516550722,0.00282794,3260.2,3260.1,1.16957]
[1762516551027,0.00282794,3260.2,3260.1,0.6724]
[1762516551324,0.00282794,3260.2,3260.1,1.16957]
[1762516552127,0.49717,3260.1,3260.0,3.2078]
[1762516552335,4.45207,3260.1,3260.0,3.2078]
[1762516552533,3.9549,3260.1,3260.0,3.70498]
[1762516553026,0.00460087,3260.4,3260.1,0.6724]
[1762516553223,3.3281,3262.2,3261.3,0.6724]
[1762516553528,0.6141,3261.5,3261.4,0.49697]
[1762516553825,0.49693,3261.7,3261.4,0.49697]
[1762516554020,0.6141,3261.5,3261.4,0.49697]
[1762516554326,0.49955481,3261.7,3261.3,0.90377]
[1762516554529,0.6141,3261.6,3261.5,0.49696]
[1762516554724,0.6141,3261.6,3261.5,0.49987675]
[1762516554921,0.00261481,3261.7,3261.6,1.16934]
[1762516555125,0.00261481,3261.7,3261.6,4.37714]
[1762516555926,0.00261481,3261.7,3261.6,3.8802]
[1762516556722,0.49953481,3261.7,3261.6,3.2078]
[1762516557725,1.11363481,3261.7,3261.6,3.2078]
[1762516557931,0.49694,3261.6,3261.5,0.00291675]
[1762516558130,1.76994,3261.6,3261.5,0.00291675]
[1762516558828,4.97774,3261.6,3261.5,0.00291675]
[1762516559429,4.97774,3261.6,3261.1,0.00460087]
[1762516559630,3.8219,3261.2,3260.4,3.6146]
[1762516559935,0.49708,3260.7,3260.4,4.11172]
[1762516560135,0.49711,3260.5,3260.4,3.2078]
[1762516560431,1.11121,3260.5,3260.4,3.2078]
[1762516560631,6.404,3261.1,3260.4,3.20996834]
[1762516560935,0.6141,3260.8,3260.4,3.70708834]
[1762516561228,0.49711,3260.5,3260.4,3.20996834]
[1762516561431,1.15601,3260.5,3260.4,3.20996834]
[1762516561734,1.77011,3260.5,3260.4,0.00216834]
[1762516562126,0.00261481,3261.7,3260.4,0.00216834]
[1762516562127,3.2078,3261.5,3261.0,0.6724]
[1762516562333,0.49697,3261.4,3261.2,4.3772]
[1762516562534,0.00261481,3261.7,3261.3,0.49699]
[1762516562736,0.00261481,3261.7,3261.2,3.2078]
[1762516562937,0.49703,3261.0,3260.7,0.49708]
[1762516563128,0.49708,3260.7,3260.6,3.6146]
[1762516563332,0.49708,3260.7,3260.6,3.2078]
[1762516564135,1.15601,3260.5,3260.4,0.00216834]
[1762516564937,1.77011,3260.5,3260.4,0.00216834]
[1762516566234,0.49726,3259.5,3259.3,3.2078]
[1762516566445,0.49724,3259.7,3259.3,3.2078]
[1762516566747,0.49726,3259.5,3259.3,3.2078]
[1762516567043,0.6141,3259.9,3259.3,3.2078]
[1762516567235,0.00460087,3259.9,3259.3,3.71280105]
[1762516567432,0.61870087,3259.9,3259.3,3.71280105]
[1762516567632,0.61870087,3259.9,3259.3,3.21552105]
[1762516567938,0.49724,3259.7,3259.3,3.71279105]
[1762516568138,2.1656192,3262.1,3261.1,3.2078]
[1762516568339,9.07601666,3263.2,3263.0,0.49672]
[1762516568536,3.2078,3264.9,3263.1,9.3366]
[1762516568836,10.202,3264.9,3263.9,3.2078]
[1762516569035,0.413,3264.0,3263.9,4.02941535]
[1762516569229,0.4164161,3264.0,3263.9,0.40031034]
[1762516569635,8.4164161,3264.0,3263.9,0.00694711]
[1762516569841,2.1207861,3264.5,3263.9,0.00694711]
[1762516570035,0.413,3264.0,3263.9,0.00694711]
[1762516570836,0.41628048,3264.0,3263.9,0.00694711]
[1762516571040,0.41628048,3264.0,3263.9,0.40591741]
[1762516571746,10.61328048,3264.0,3263.9,0.40591741]
[1762516574036,10.59028048,3264.0,3263.9,3.61371741]
[1762516574437,0.49663,3263.6,3263.5,3.2078]
[1762516574644,0.49663,3263.6,3263.5,3.60584063]
[1762516575447,0.49663,3263.6,3263.5,3.60923228]
[1762516575646,0.49663,3263.6,3263.5,0.40143228]
[1762516576145,10.64363,3263.6,3263.5,0.40143228]
[1762516576944,10.63663,3263.6,3263.5,0.40143228]
[1762516577644,10.62763,3263.6,3263.5,0.40143228]
[1762516578144,11.25583,3263.6,3263.5,0.40143228]
[1762516579435,11.25583,3263.6,3263.5,3.228e-05]
[1762516579635,0.49682,3262.4,3262.3,0.81720255]
[1762516579840,3.2078,3262.9,3262.2,0.6381]
[1762516580041,0.49683,3262.3,3262.2,0.6381]
[1762516580540,0.49683,3262.3,3262.2,8.64199496]
[1762516580848,0.00460087,3262.6,3262.2,8.64199496]
[1762516581143,0.00460087,3262.6,3262.5,1.1349]
[1762516581344,0.65300361,3266.2,3263.1,0.6381]
[1762516581345,2.6067,3263.2,3263.1,0.6381]
[1762516581647,0.49668,3263.3,3263.2,0.6381]
[1762516582044,10.106,3263.6,3263.4,0.3923]
[1762516582246,10.106,3263.6,3263.4,3.6001]
[1762516582751,0.49665,3263.5,3263.4,3.6001]
[1762516583144,5.42565,3263.5,3263.4,3.6001]
[1762516583745,0.49665,3263.5,3263.4,3.6001]
[1762516583946,5.40465,3263.5,3263.4,0.3923]
[1762516585643,0.49665,3263.5,3263.4,0.3923]
[1762516586650,0.49668,3263.3,3263.2,0.00460087]
[1762516587350,10.55768,3263.3,3263.2,0.00460087]
[1762516588044,0.49668,3263.3,3263.2,0.00460087]
[1762516588245,10.55268,3263.3,3263.2,0.00460087]
[1762516589250,0.49668,3263.3,3263.2,0.00460087]
[1762516589441,10.54668,3263.3,3263.2,0.00460087]
[1762516589649,0.49668,3263.3,3263.2,0.00460087]
[1762516589845,0.49668,3263.3,3263.2,0.64270087]
[1762516590051,0.00460087,3263.8,3263.4,0.3923]
[1762516590246,0.49662,3263.7,3263.6,3.8459]
[1762516590451,0.50121087,3263.8,3263.7,0.6381]
[1762516591248,0.00460087,3263.8,3263.7,0.6381]
[1762516591449,0.50121087,3263.8,3263.7,0.6381]
[1762516591756,0.50121087,3263.8,3263.4,0.3923]
[1762516591757,0.49665,3263.5,3263.4,0.3923]
[1762516592759,10.52265,3263.5,3263.4,0.3923]
[1762516595456,0.49668,3263.3,3263.2,0.00460087]
[1762516595863,10.49368,3263.3,3263.2,0.00460087]
[1762516597966,0.4967,3263.2,3263.1,8.3e-07]
[1762516598163,0.78,3262.5,3262.4,3.2078]
[1762516598367,10.4748,3262.5,3262.4,4.85705428]
[1762516598864,0.49683,3262.3,3262.2,1.65314924]
[1762516599073,0.49683,3262.3,3262.2,0.00389496]
[1762516599477,9.976,3262.5,3262.4,1.1443]
[1762516599868,10.4728,3262.5,3262.4,1.1443]
[1762516600675,0.49683,3262.3,3262.2,1.6539497]
[1762516600869,0.49683,3262.3,3262.2,0.00389496]
[1762516602369,0.49683,3262.3,3262.2,1.10348247]
[1762516602770,0.49683,3262.3,3262.2,0.00389496]
[1762516602970,10.45783,3262.3,3262.2,0.00389496]
[1762516604173,1.09700846,3263.5,3263.4,1.843]
[1762516604478,3.2078,3263.6,3263.2,1.65005474]
[1762516604672,0.49676,3262.8,3262.7,2.20738411]
[1762516604877,0.49683,3262.3,3262.2,0.00389496]
[1762516605079,10.53383,3262.3,3262.2,0.00389496]
[1762516605774,21.2448,3262.3,3261.5,1.09923935]
[1762516605974,0.49699,3261.3,3261.2,1.09923935]
[1762516606178,0.49699,3261.3,3261.1,1.09923935]
[1762516606581,0.49702,3261.1,3261.0,1.79793935]
[1762516606983,0.50047031,3261.1,3261.0,1.80091663]
[1762516607184,0.00345031,3261.1,3261.0,0.70167728]
[1762516607783,0.00345031,3261.1,3261.0,0.00297728]
[1762516610088,10.02245031,3261.1,3261.0,0.00297728]
[1762516611477,0.00345031,3261.1,3261.0,1.14727728]
[1762516611685,3.63845031,3261.1,3261.0,0.00297728]
[1762516612491,9.99745031,3261.1,3261.0,5.05377728]
[1762516612683,10.48547031,3261.1,3261.0,3.90947728]
[1762516613290,10.48547031,3261.1,3261.0,0.70167728]
[1762516613587,9.98445031,3261.1,3261.0,0.70167728]
[1762516614690,9.99545031,3261.1,3261.0,0.70167728]
[1762516616282,9.98145031,3261.1,3261.0,0.70167728]
[1762516616885,0.00345031,3261.1,3261.0,1.84597728]
[1762516617585,0.00345031,3261.1,3261.0,0.70167728]
[1762516617784,0.50047031,3261.1,3261.0,0.6987]
[1762516618686,0.49711,3260.5,3260.4,0.6987]
[1762516618985,0.49711,3260.5,3260.4,0.70116488]
[1762516619189,9.968,3260.5,3260.4,0.70116488]
[1762516619385,9.968,3260.5,3260.4,1.84546488]
[1762516619583,9.968,3260.5,3260.4,0.70116488]
[1762516619782,10.46511,3260.5,3260.4,0.70116488]
[1762516620986,0.49711,3260.5,3260.4,0.70116488]
[1762516621181,4.59811,3260.5,3260.4,0.70116488]
[1762516621892,0.49711,3260.5,3260.4,0.70116488]
[1762516622091,4.58711,3260.5,3260.4,0.70116488]
[1762516622388,4.58711,3260.5,3260.4,0.00246488]
[1762516622591,0.4972,3259.9,3259.8,0.6987]
[1762516622788,8.961,3259.9,3259.8,0.6987]
[1762516623186,9.4582,3259.9,3259.8,0.6987]
[1762516623582,9.4582,3259.9,3259.8,0.70172205]
[1762516624293,8.961,3259.9,3259.8,0.70172205]
[1762516624490,3.2078,3260.9,3260.4,1.843]
[1762516624692,0.00345031,3261.1,3261.0,1.843]
[1762516624891,0.00345031,3261.1,3261.0,0.6987]
[1762516625295,0.50046031,3261.1,3261.0,0.6987]
[1762516625490,0.49711,3260.5,3260.4,0.6987]
[1762516625695,0.49711,3260.5,3260.4,1.843]
[1762516627998,0.49711,3260.5,3260.4,0.6987]
[1762516629589,3.08875235,3260.9,3260.4,0.6987]
[1762516629795,3.2078,3262.4,3261.8,1.0691]
[1762516630096,3.70463,3262.3,3262.2,0.666]
[1762516630294,0.49683,3262.3,3262.2,0.666]
[1762516630798,0.50048178,3262.3,3262.2,0.66947656]
[1762516633603,10.46248178,3262.3,3262.2,0.66947656]
[1762516633904,0.00460087,3262.6,3262.5,1.0691]
[1762516634996,0.00802034,3262.6,3262.5,1.0691]
[1762516635196,0.49682,3262.4,3262.3,1.09764844]
[1762516635403,0.49683,3262.3,3262.2,0.66947656]
[1762516635606,10.44883,3262.3,3262.2,0.66947656]
[1762516637406,13.65663,3262.3,3262.2,0.00347656]
[1762516637594,3.70463,3262.3,3262.2,0.66947656]
[1762516637804,0.49683,3262.3,3262.2,1.73857656]
[1762516638300,7.34383,3262.4,3262.2,1.73857656]
[1762516638493,0.49683,3262.3,3262.2,1.73857656]
[1762516638694,0.49683,3262.3,3262.2,4.94637656]
[1762516638900,0.49683,3262.3,3262.2,3.87727656]
[1762516640701,0.00802034,3262.6,3262.3,1.0691]
[1762516640907,0.50481034,3262.6,3262.5,1.0691]
[1762516641105,10.41581034,3262.6,3262.5,1.0691]
[1762516642803,0.00802034,3262.6,3262.5,1.0691]
[1762516643012,9.91902034,3262.6,3262.5,1.0691]
[1762516643211,0.00802034,3262.6,3262.5,1.5659]
[1762516643512,6.40702034,3262.7,3262.6,1.0691]
[1762516643713,0.49676,3262.8,3262.7,1.0691]
[1762516643908,0.49674,3263.0,3262.7,1.0691]
[1762516644112,0.49674,3262.9,3262.8,1.7351]
[1762516644316,0.50033459,3262.9,3262.8,1.7351]
[1762516644705,0.49682,3262.4,3262.3,1.09764844]
[1762516645017,0.49682,3262.4,3262.2,3.87727656]
[1762516645519,0.49682,3262.4,3262.3,1.0691]
[1762516646007,0.00359459,3262.9,3262.8,0.666]
[1762516646314,10.39634459,3262.9,3262.8,1.7351]
[1762516646516,0.49676,3262.8,3262.7,3.2078]
[1762516646908,1.62286,3262.8,3262.7,3.2078]
[1762516647108,0.49676,3262.8,3262.7,4.2769]
[1762516647617,9.89959459,3262.9,3262.2,0.66947656]
[1762516647812,0.49682,3262.4,3262.3,1.0691]
[1762516648014,0.49682,3262.4,3262.3,4.2769]
[1762516649411,0.49682,3262.4,3262.2,0.66947656]
[1762516649412,1.62293,3262.3,3262.2,0.00347656]
[1762516649618,11.51893,3262.3,3262.2,0.00347656]
[1762516652109,11.51793,3262.3,3262.2,0.00347656]
[1762516653115,0.49683,3262.3,3262.2,1.73857656]
[1762516653411,10.39183,3262.3,3262.2,1.73857656]
[1762516654322,0.00460087,3263.2,3263.1,1.0691]
[1762516654616,0.00460087,3263.2,3262.9,1.09764844]
[1762516654815,0.49674,3262.9,3262.8,4.97144844]
[1762516655016,0.49674,3262.9,3262.8,3.8738]
[1762516655411,0.49925996,3262.9,3262.8,4.97144844]
[1762516655714,0.49925996,3262.9,3262.8,3.8738]
[1762516656218,0.49925996,3262.9,3262.8,0.666]
[1762516656810,0.49677,3262.7,3262.6,1.09764844]
[1762516657715,0.49679,3262.6,3262.5,1.09764844]
[1762516658516,0.00251996,3262.9,3262.4,3.2078]
[1762516658517,0.4968,3262.5,3262.4,3.2078]
[1762516659120,0.00251996,3262.9,3262.4,4.3392]
[1762516659323,6.45276,3262.8,3262.7,1.0984712]
[1762516659619,1.59377,3262.7,3262.6,0.82494659]
[1762516660126,1.59379,3262.6,3262.5,0.82494659]
[1762516660424,4.80159,3262.6,3262.5,0.82494659]
[1762516660718,0.49682,3262.4,3262.3,1.0984712]
[1762516661307,6.4145,3262.8,3262.2,1.64610616]
[1762516661512,6.4145,3262.8,3262.6,0.82535672]
[1762516661723,1.097,3262.7,3262.6,0.82535672]
[1762516661917,1.59377,3262.7,3262.6,0.82535672]
[1762516662216,1.59379,3262.6,3262.5,0.82535672]
[1762516662916,1.59383,3262.3,3262.2,0.82883328]
[1762516664717,4.80163,3262.3,3262.2,0.00347656]
[1762516665022,4.80163,3262.3,3262.2,6.56e-06]
[1762516665226,12.80163,3262.3,3262.2,6.56e-06]
[1762516665720,0.49702,3261.1,3261.0,1.6426296]
[1762516665926,3.2078,3261.6,3260.8,1.6426296]
[1762516666127,0.49696,3261.5,3261.4,1.0392]
[1762516666429,0.497,3261.2,3261.1,1.6426296]
[1762516666621,0.49702,3261.1,3261.0,6.5368296]
[1762516666814,0.49702,3261.1,3261.0,6.54535807]
[1762516667123,0.49702,3261.1,3261.0,6.54781316]
[1762516667321,0.49702,3261.1,3261.0,4.89665509]
[1762516668121,0.00460087,3261.5,3261.0,4.89665509]
[1762516668328,10.38898,3261.3,3261.2,1.0392]
[1762516668728,0.49698,3261.3,3261.2,1.0392]
[1762516670823,0.49702,3261.1,3261.0,3.85745509]
[1762516671420,1.59402,3261.1,3261.0,3.21025509]
[1762516672825,0.49711,3260.5,3260.4,0.666]
[1762516673530,3.2078,3260.7,3260.1,1.0392]
[1762516673531,0.49717,3260.2,3260.1,1.0392]
[1762516673731,0.50016226,3260.2,3260.1,1.04209598]
[1762516674433,0.50016226,3260.2,3260.1,0.00289598]
[1762516674629,1.59716226,3260.2,3260.1,0.00289598]
[1762516675035,11.48716226,3260.2,3260.1,0.00289598]
[1762516677049,0.49726,3259.5,3259.4,1.0392]
[1762516678139,0.49724,3259.7,3259.6,1.0392]
[1762516678733,0.49724,3259.6,3259.5,0.6472]
[1762516679040,1.59426,3259.5,3259.4,0.00368717]
[1762516679434,9.89,3259.5,3259.4,1.04288717]
[1762516679737,10.38626,3259.5,3259.4,1.04288717]
[1762516680040,0.00460087,3259.8,3259.4,1.04288717]
[1762516680041,0.00460087,3259.8,3259.5,0.6472]
[1762516680235,0.00460087,3259.8,3259.4,0.00368717]
[1762516680236,9.89,3259.7,3259.4,0.00368717]
[1762516680432,0.49726,3259.5,3259.4,0.00368717]
[1762516680933,0.00299226,3260.2,3259.5,14.7832]
[1762516681134,3.2078,3261.3,3261.2,1.0392]
[1762516681341,0.49698,3261.4,3261.2,1.0392]
[1762516681540,0.49702,3261.2,3261.0,0.6472]
[1762516681840,0.49702,3261.2,3260.6,3.2078]
[1762516681841,0.49705,3260.9,3260.6,3.2078]
[1762516682039,0.00252929,3260.9,3260.7,1.0392]
[1762516682447,0.49957929,3260.9,3260.7,1.0392]
[1762516683144,0.49708,3260.7,3260.5,0.6472]
[1762516683345,0.49708,3260.7,3260.6,1.0392]
[1762516683736,0.00252929,3260.9,3260.6,1.0392]
[1762516683937,0.00252929,3260.9,3260.8,1.0392]
[1762516684141,3.70474,3261.7,3261.6,1.6864]
[1762516684342,3.607,3262.1,3261.6,1.6864]
[1762516684543,3.6663,3262.5,3261.7,3.2078]
[1762516684544,3.2078,3262.5,3261.7,3.2078]
[1762516684837,4.753,3262.7,3262.4,1.0392]
[1762516685044,0.49677,3262.7,3262.4,1.0392]
[1762516685247,0.49679,3262.6,3262.4,1.04206767]
[1762516685439,0.49679,3262.6,3262.5,1.0392]
[1762516685639,1.097,3262.5,3262.4,0.00286767]
[1762516687652,3.21085569,3262.7,3262.6,1.0392]
[1762516687945,0.00305569,3262.7,3262.6,1.0392]
[1762516689448,0.49982569,3262.7,3262.6,1.0392]
[1762516691248,0.00305569,3262.7,3262.6,1.0392]
[1762516694950,0.49982569,3262.7,3262.6,1.0392]
[1762516696355,0.00305569,3262.7,3262.6,1.53599]
[1762516696558,0.49982569,3262.7,3262.6,1.0392]
[1762516698660,0.00305569,3262.7,3262.6,1.0392]
[1762516698856,0.49982569,3262.7,3262.6,1.0392]
[1762516699359,0.00305569,3262.7,3262.6,1.0392]
[1762516699561,3.2078,3263.6,3262.8,1.0304]
[1762516699752,9.877,3263.9,3263.0,0.6677]
[1762516699954,3.2078,3263.5,3263.0,0.6677]
[1762516700560,3.21134991,3263.5,3263.0,0.6677]
[1762516700761,0.49671,3263.1,3263.0,1.6981]
[1762516701466,0.49679,3262.6,3262.5,0.6677]
[1762516701653,0.49679,3262.6,3262.5,1.6981]
[1762516701853,0.4968,3262.5,3262.4,0.00286767]
[1762516702656,13.0838,3263.1,3262.4,1.03326767]
[1762516702854,9.876,3263.1,3262.5,1.0304]
[1762516703055,0.49679,3262.6,3262.5,1.0304]
[1762516705160,0.49884991,3263.5,3262.8,0.6677]
[1762516705360,0.49674,3262.9,3262.8,1.6981]
[1762516706260,0.49679,3262.6,3262.5,3.8755]
[1762516706460,0.49679,3262.6,3262.5,3.2078]
[1762516707351,0.49679,3262.6,3262.5,4.9059]
[1762516709061,0.49679,3262.6,3262.5,3.2078]
[1762516709461,0.4968,3262.5,3262.4,0.00286767]
[1762516709657,1.5605,3262.5,3262.4,0.00286767]
[1762516710862,10.3668,3262.5,3262.4,0.00286767]
[1762516711658,11.4305,3262.5,3262.4,0.00286767]
[1762516713264,11.9958,3262.5,3262.4,0.00286767]
[1762516713866,1.56058,3262.0,3261.9,1.09195555]
[1762516714061,1.56061,3261.8,3261.7,1.09195555]
[1762516714959,1.56061,3261.8,3261.7,1.0946157]
[1762516715368,0.49691,3261.8,3261.7,1.0946157]
[1762516715568,0.49691,3261.8,3261.7,1.10078818]
[1762516715766,9.868,3261.9,3261.7,1.10078818]
[1762516715969,0.4969,3261.9,3261.8,2.12832574]
[1762516716167,7.628,3261.9,3261.7,1.65381822]
[1762516716469,8.1249,3261.9,3261.8,2.12834962]
[1762516716660,8.1249,3261.9,3261.8,1.0304]
[1762516716859,7.628,3261.9,3261.8,1.0304]
[1762516717067,8.1249,3261.9,3261.8,1.0304]
[1762516717562,8.1249,3261.9,3261.8,2.68155807]
[1762516717758,0.49682,3262.4,3261.8,2.68155807]
[1762516717962,0.49682,3262.4,3262.3,1.0304]
[1762516718270,0.49684,3262.3,3262.2,1.09991536]
[1762516718468,3.4844,3262.5,3262.0,1.65115807]
[1762516718469,0.49685,3262.2,3262.1,2.10201536]
[1762516718671,9.866,3262.3,3262.1,2.65325807]
[1762516718972,10.36284,3262.3,3262.2,1.10019195]
[1762516719768,11.29224,3262.3,3262.2,1.10019195]
[1762516719968,1.45645,3262.2,3262.1,1.10019195]
[1762516721172,1.45648,3262.0,3261.9,1.10019195]
[1762516721373,0.4969,3261.9,3261.8,1.10019195]
[1762516721970,1.4565,3261.9,3261.8,1.10019195]
[1762516723367,9.866,3262.3,3261.8,2.04269195]
[1762516724666,0.49687,3262.1,3262.0,1.5317]
[1762516725575,9.862,3262.2,3262.1,0.9425]
[1762516725873,9.862,3262.2,3262.0,1.5575]
[1762516725874,0.49687,3262.1,3262.0,1.5575]
[1762516726775,0.49687,3262.1,3262.0,2.65714126]
[1762516727068,0.49687,3262.1,3262.0,1.09964126]
[1762516727777,0.4969,3261.9,3261.8,1.09964126]
[1762516728773,1.4246,3261.9,3261.8,1.09964126]
[1762516729577,0.49692,3261.8,3261.7,1.10230141]
[1762516729874,11.28262,3261.8,3261.7,1.10230141]
[1762516730175,11.28262,3261.8,3261.7,0.00266015]
[1762516731267,11.28262,3261.8,3261.7,1.10308167]
[1762516731971,11.28262,3261.8,3261.7,0.00266015]
[1762516735578,11.27762,3261.8,3261.7,0.00266015]
[1762516736579,10.34992,3261.8,3261.7,0.00266015]
[1762516736879,11.27762,3261.8,3261.7,0.00266015]
[1762516737580,11.27562,3261.8,3261.7,0.00266015]
[1762516738174,11.27562,3261.8,3261.7,1.10308167]
[1762516739094,10.34792,3261.8,3261.7,0.97096015]
[1762516739971,10.34792,3261.8,3261.7,2.62211822]
[1762516740172,9.851,3261.8,3261.7,2.62211822]
[1762516740372,10.34792,3261.8,3261.7,2.62211822]
[1762516741081,10.34792,3261.8,3261.7,0.97096015]
[1762516741583,10.34792,3261.8,3261.7,1.65484631]
[1762516741776,11.27562,3261.8,3261.7,0.00266015]
[1762516742780,9.851,3261.8,3261.7,2.62314631]
[1762516743280,10.34792,3261.8,3261.7,0.97096015]
[1762516743477,3.2078,3262.3,3261.7,0.97096015]
[1762516743686,9.846,3262.2,3262.1,2.62029534]
[1762516743874,3.867,3262.4,3262.3,0.9683]
[1762516744073,14.20983,3262.4,3262.3,0.9683]
[1762516745381,0.49684,3262.3,3262.2,1.65144665]
[1762516745578,1.42455,3262.2,3262.1,1.65144665]
[1762516745779,1.42457,3262.1,3262.0,1.65144665]
[1762516745982,11.26857,3262.1,3262.0,1.65144665]
[1762516746285,10.7717,3262.1,3262.0,1.65144665]
[1762516746479,11.26857,3262.1,3261.8,3.2078]
[1762516746680,11.26857,3262.1,3262.0,1.65106765]
[1762516747383,1.42459,3262.0,3261.9,1.65106765]
[1762516748183,0.49691,3261.9,3261.7,0.00266015]
[1762516748688,9.844,3262.1,3262.0,0.5405]
[1762516748988,10.33687,3262.1,3262.0,2.18947299]
[1762516749191,9.84,3262.1,3262.0,2.18947299]
[1762516749480,0.49684,3262.3,3262.2,0.8815]
[1762516750788,0.49685,3262.2,3262.1,1.64897299]
[1762516750987,10.33585,3262.2,3262.1,1.64897299]
[1762516751203,0.49687,3262.1,3262.0,2.18947299]
[1762516751693,10.33586,3262.2,3262.0,3.07097299]
[1762516751895,10.33586,3262.2,3262.1,1.64824238]
[1762516752096,9.837,3262.6,3262.5,0.5405]
[1762516752296,0.61487785,3262.6,3262.5,3.06975234]
[1762516752689,1.50897785,3262.6,3262.5,1.64775234]
[1762516752891,1.50897785,3262.6,3262.3,4.85555234]
[1762516752892,0.11808785,3262.6,3262.3,4.85555234]
[1762516753093,9.95408785,3262.7,3262.5,0.5405]
[1762516753293,0.8941,3262.5,3262.4,1.09817997]
[1762516753496,0.49684,3262.3,3262.2,1.64775234]
[1762516753695,0.49684,3262.3,3262.2,2.52925234]
[1762516754193,0.49683,3262.4,3262.2,2.52925234]
[1762516754401,0.49683,3262.4,3262.3,0.8815]
[1762516754606,1.39094,3262.3,3262.2,1.64775234]
[1762516754992,0.49685,3262.2,3262.0,0.5405]
[1762516755198,0.49687,3262.1,3262.0,1.422]
[1762516755395,0.49686,3262.2,3262.0,1.422]
[1762516755700,0.49685,3262.2,3262.1,0.8815]
[1762516756101,0.49685,3262.2,3262.1,2.52837407]
[1762516756602,0.49684,3262.3,3262.2,0.8815]
[1762516756805,10.33083,3262.4,3262.3,0.8815]
[1762516757504,9.834,3262.4,3262.3,0.8815]